bitfinex/quotes_SOLUSD_20211001
["timestamp","ask_amount","ask_price","bid_price","bid_amount"]
[1633047193538,0.0212976,142.06,141.95,20.05285258]
[1633047193736,0.0212976,142.08,141.95,20.05285258]
[1633047193937,0.0212976,142.08,141.96,24.10749631]
[1633047194137,0.0212976,142.08,141.96,45.7940127]
[1633047194336,111.4516,142.16,141.99,2.48461916]
[1633047194541,0.0212976,142.11,141.99,23.17861916]
[1633047194739,0.0212976,142.11,142.0,5.77351639]
[1633047194740,27.8,142.06,142.0,5.77351639]
[1633047194939,116.5,142.17,142.06,27.06518619]
[1633047195138,0.0212976,142.15,142.06,44.40518619]
[1633047195340,0.0212976,142.15,142.07,22.70818525]
[1633047195739,28.82417952,142.22,142.07,22.70818525]
[1633047195740,0.0212976,142.18,142.07,22.70818525]
[1633047196737,0.0212976,142.21,142.07,22.70818525]
[1633047197141,0.0212976,142.21,142.07,63.64170164]
[1633047197539,0.0212976,142.21,142.09,17.5793]
[1633047197739,0.0212976,142.27,142.1,21.48256184]
[1633047197937,0.0212976,142.27,142.1,27.25607823]
[1633047198138,0.0212976,142.31,142.11,2.58259724]
[1633047198339,0.0212976,142.31,142.11,25.40686692]
[1633047198937,21.6855233,142.31,142.11,25.40686692]
[1633047199138,5.79481399,142.3,142.11,19.63335053]
[1633047199338,0.0212976,142.29,142.11,19.63335053]
[1633047199539,0.0212976,142.3,142.11,19.63335053]
[1633047199744,26.07153006,142.29,142.1,21.48256184]
[1633047199941,116.5,142.23,142.1,21.48256184]
[1633047200343,116.5212976,142.23,142.1,21.48256184]
[1633047200940,116.5212976,142.23,142.06,27.06518619]
[1633047201140,0.0212976,142.22,142.06,27.06518619]
[1633047201540,26.07153006,142.21,142.06,27.06518619]
[1633047201742,0.0212976,142.2,142.06,27.06518619]
[1633047201940,15.27000929,142.2,142.06,27.06518619]
[1633047202143,0.0212976,142.19,142.06,27.06518619]
[1633047202941,41.34153935,142.19,142.06,27.06518619]
[1633047203141,9.30906849,142.12,142.06,27.06518619]
[1633047203741,15.27000929,142.19,142.06,27.06518619]
[1633047204343,422.86963635,142.14,142.06,27.06518619]
[1633047205744,9.3071022,142.15,142.06,27.06518619]
[1633047205944,9.3071022,142.15,142.06,43.91218619]
[1633047206149,9.3071022,142.15,142.07,22.52399668]
[1633047209148,9.3071022,142.15,142.07,45.03299668]
[1633047210153,8.8071022,142.15,142.07,45.03299668]
[1633047210352,9.5722841,142.19,142.07,45.03299668]
[1633047210552,9.5722841,142.19,142.07,22.52399668]
[1633047212557,9.5935817,142.19,142.06,27.06518619]
[1633047212759,50.89252585,142.19,142.06,27.06518619]
[1633047212956,0.0212976,142.18,142.06,27.06518619]
[1633047214156,17.605,142.17,142.06,27.06518619]
[1633047214355,0.0212976,142.16,142.06,27.06518619]
[1633047217355,83.0,142.09,141.97,1.6747295]
[1633047217559,83.0,142.09,141.95,1.68842423]
[1633047217756,83.0,142.09,141.94,1.6930686]
[1633047218157,83.0,142.09,141.95,26.61820069]
[1633047218158,21.98687047,142.08,141.95,26.61820069]
[1633047218359,21.98687047,142.08,141.96,1.69782285]
[1633047219256,9.31365973,142.05,141.97,1.69412027]
[1633047219458,9.31365973,142.05,141.98,24.27757056]
[1633047219958,9.31365973,142.05,141.98,47.40935784]
[1633047220359,9.31365973,142.05,141.99,1.68970242]
[1633047220562,9.31365973,142.05,141.98,47.39962579]
[1633047221560,24.13072339,142.04,141.98,23.12205523]
[1633047221761,24.13072339,142.04,141.96,1.69968261]
[1633047221960,9.31365973,142.05,141.96,1.69968261]
[1633047222360,9.31365973,142.05,141.97,1.71546272]
[1633047222762,9.31365973,142.05,141.95,1.72718802]
[1633047222962,38.67345112,142.05,141.96,28.43261858]
[1633047223163,38.67345112,142.05,141.96,26.71016732]
[1633047223361,38.67345112,142.05,141.94,1.73056361]
[1633047223562,83.65803673,142.05,141.94,1.73056361]
[1633047223762,22.06883404,142.04,141.92,1.76370056]
[1633047223964,39.69023404,142.04,141.92,1.76370056]
[1633047224161,67.45681965,142.04,141.9,1.77585848]
[1633047224362,0.0212976,142.03,141.91,23.77561803]
[1633047224561,22.09013164,142.03,141.91,23.77561803]
[1633047224764,21.14693017,142.02,141.91,23.77561803]
[1633047224961,41.52744416,142.02,141.91,23.77561803]
[1633047225162,21.14693017,142.02,141.91,23.77561803]
[1633047225364,22.06883404,142.01,141.91,23.77561803]
[1633047225764,9.31891241,141.97,141.91,23.77561803]
[1633047226562,9.31891241,141.97,141.88,1.7806431]
[1633047226966,9.31891241,141.97,141.87,1.78390205]
[1633047227363,9.31891241,141.97,141.86,1.79384083]
[1633047227563,21.69856855,141.96,141.87,27.67273187]
[1633047227764,9.32219835,141.92,141.85,1.81318948]
[1633047228163,16.555,141.92,141.84,1.82582411]
[1633047228366,16.555,141.92,141.85,1.82491939]
[1633047228563,16.555,141.92,141.82,469.8489049]
[1633047228564,16.555,141.92,141.84,1.81997356]
[1633047228767,16.555,141.92,141.85,23.2413175]
[1633047229366,25.1966296,141.93,141.85,23.2413175]
[1633047229566,9.58781037,141.96,141.85,23.2413175]
[1633047229767,9.58781037,141.96,141.85,25.05517118]
[1633047229969,9.58781037,141.96,141.86,1.80805985]
[1633047230173,9.58781037,141.96,141.86,18.293]
[1633047230371,9.58781037,141.96,141.87,1.78618192]
[1633047230568,471.57034494,142.0,141.88,25.44801357]
[1633047230972,22.97208692,142.03,141.88,25.44801357]
[1633047231169,26.69143581,142.0,141.88,25.44801357]
[1633047231769,9.31759869,141.99,141.88,25.44801357]
[1633047234570,0.0212976,142.06,141.88,25.44801357]
[1633047234571,0.0212976,142.06,141.88,27.2176322]
[1633047234770,0.0212976,142.07,141.88,27.2176322]
[1633047235172,19.75772292,142.06,141.89,0.02088]
[1633047235371,19.77902052,142.06,141.89,22.529]
[1633047235571,9.31497234,142.03,141.89,22.529]
[1633047235773,9.31694196,142.0,141.89,22.529]
[1633047235971,24.61169039,141.99,141.89,22.529]
[1633047239475,5.00977727,141.88,141.85,541.9163975]
[1633047239675,9.18213785,141.88,141.85,541.9163975]
[1633047239875,9.18213785,141.88,141.82,0.02088]
[1633047240379,15.28973448,141.88,141.79,1.84075074]
[1633047240576,15.28973448,141.88,141.77,1.86023931]
[1633047240975,53.03150235,141.88,141.75,60.0]
[1633047241179,9.32623573,141.86,141.75,60.0]
[1633047241376,24.94553333,141.86,141.75,60.0]
[1633047241579,44.36941331,141.85,141.75,60.0]
[1633047241778,19.75772292,141.85,141.76,23.54857459]
[1633047241978,9.59593105,141.84,141.76,23.54857459]
[1633047242277,0.0212976,141.86,141.76,25.43325085]
[1633047242478,0.0212976,141.87,141.79,1.86556535]
[1633047242679,0.0212976,141.87,141.78,1.88198204]
[1633047242876,9.18213785,141.88,141.76,25.44149422]
[1633047243077,9.18213785,141.88,141.76,23.54857459]
[1633047243478,9.18213785,141.88,141.76,25.4446614]
[1633047243681,9.18213785,141.88,141.76,23.54857459]
[1633047243877,9.32614453,141.86,141.76,23.54857459]
[1633047244279,9.32614453,141.86,141.76,25.44519574]
[1633047244683,9.32614453,141.86,141.76,23.54857459]
[1633047245082,27.80607601,141.85,141.76,23.54857459]
[1633047245686,27.80607601,141.85,141.74,1.89810383]
[1633047245987,27.80607601,141.85,141.72,1.9100103]
[1633047246193,27.80607601,141.85,141.73,1.90601868]
[1633047246590,27.80607601,141.85,141.73,30.99530169]
[1633047246789,27.80607601,141.85,141.73,29.08928301]
[1633047246990,27.80607601,141.85,141.74,1.88754512]
[1633047249613,9.32614453,141.86,141.74,1.88754512]
[1633047249811,9.32614453,141.86,141.74,19.33254512]
[1633047250013,0.0212976,141.87,141.75,1.88420257]
[1633047250212,0.0212976,141.87,141.76,1.88191802]
[1633047250413,9.18213785,141.88,141.77,1.87498893]
[1633047250614,9.18213785,141.88,141.77,44.05013596]
[1633047251416,9.18213785,141.88,141.78,1.87129407]
[1633047251614,9.18213785,141.88,141.77,26.45293598]
[1633047251814,9.32614453,141.86,141.77,26.45293598]
[1633047252615,9.32614453,141.86,141.77,1.87778895]
[1633047252815,9.34744213,141.86,141.74,1.90711066]
[1633047253214,9.34744213,141.86,141.75,1.90673057]
[1633047253614,9.34744213,141.86,141.76,28.55079322]
[1633047253817,9.34744213,141.86,141.76,30.44405369]
[1633047254017,9.34744213,141.86,141.77,1.88752405]
[1633047254817,9.34744213,141.86,141.76,30.44632903]
[1633047255215,9.34744213,141.86,141.77,1.89487682]
[1633047255416,9.34744213,141.86,141.76,30.45262388]
[1633047255817,9.33009405,141.8,141.76,1.90183066]
[1633047256016,24.78209405,141.8,141.75,1.93921782]
[1633047256216,24.78209405,141.8,141.73,1.96812306]
[1633047256419,24.78209405,141.8,141.72,1.98020416]
[1633047256624,24.78209405,141.8,141.74,1.96810921]
[1633047257219,24.78209405,141.8,141.72,1.9840463]
[1633047257619,24.78209405,141.8,141.71,1.9985057]
[1633047257820,9.33338788,141.75,141.7,1.99440688]
[1633047258020,35.60277576,141.75,141.7,1.99440688]
[1633047258219,26.11925535,141.74,141.7,1.99440688]
[1633047258420,0.0212976,141.73,141.69,1.98564972]
[1633047258822,0.0212976,141.73,141.68,1.97852496]
[1633047259021,18.66677576,141.75,141.7,1.94808954]
[1633047259225,17.5841447,141.8,141.7,1.94808954]
[1633047259422,0.0212976,141.8,141.69,1.93305145]
[1633047259621,0.0212976,141.8,141.68,1.93410867]
[1633047259823,9.33404692,141.74,141.68,1.93410867]
[1633047260622,9.33404692,141.74,141.67,1.93338744]
[1633047260821,9.33404692,141.74,141.68,24.52371328]
[1633047261221,9.33404692,141.74,141.69,1.94663562]
[1633047261823,9.33404692,141.74,141.68,1.95953055]
[1633047262621,9.59999655,141.78,141.68,1.95953055]
[1633047263022,9.59999655,141.78,141.69,25.70844191]
[1633047263223,9.59999655,141.78,141.69,27.65808548]
[1633047263425,9.59999655,141.78,141.69,1.94964357]
[1633047263825,9.33536529,141.72,141.69,1.94964357]
[1633047266331,9.33536529,141.72,141.7,21.38304612]
[1633047266529,9.33536529,141.72,141.7,23.34850804]
[1633047266730,9.33536529,141.72,141.71,1.96078158]
[1633047267332,9.33536529,141.72,141.69,3.94350877]
[1633047267732,9.33536529,141.72,141.68,3.97167808]
[1633047267930,9.33536529,141.72,141.71,1.98123254]
[1633047268936,9.33536529,141.72,141.7,3.95810491]
[1633047269134,9.33536529,141.72,141.71,7.99858985]
[1633047269335,9.33536529,141.72,141.7,3.95810491]
[1633047269535,9.33536529,141.72,141.69,3.96136885]
[1633047270735,9.33536529,141.72,141.69,32.8960175]
[1633047270935,46.09604369,141.8,141.7,8.03307377]
[1633047271137,46.09604369,141.8,141.72,1.99013331]
[1633047271539,73.97406862,141.8,141.72,1.99013331]
[1633047272140,9.33338788,141.75,141.71,1.98136065]
[1633047273439,9.33338788,141.75,141.7,1.97979794]
[1633047274039,9.59931873,141.79,141.7,1.97979794]
[1633047274240,9.33338788,141.75,141.71,1.97562543]
[1633047276142,9.33338788,141.75,141.72,1.9801005]
[1633047276344,9.33338788,141.75,141.71,1.97864348]
[1633047276540,9.33338788,141.75,141.7,1.97921708]
[1633047277144,9.33338788,141.75,141.71,1.97052636]
[1633047277344,9.33338788,141.75,141.7,1.97257102]
[1633047277542,9.33338788,141.75,141.71,1.97636308]
[1633047277944,9.33338788,141.75,141.71,29.50502759]
[1633047278343,9.33338788,141.75,141.72,1.97100094]
[1633047278543,9.33338788,141.75,141.72,21.94700094]
[1633047278743,9.59931873,141.79,141.72,21.94700094]
[1633047279541,9.59931873,141.79,141.73,1.99335012]
[1633047280146,9.33338788,141.75,141.73,1.99335012]
[1633047280346,9.33338788,141.75,141.72,1.98953958]
[1633047280546,9.33338788,141.75,141.73,1.98923138]
[1633047280747,9.33338788,141.75,141.72,1.99396199]
[1633047281547,9.33338788,141.75,141.71,1.99273426]
[1633047281750,9.33338788,141.75,141.72,1.99878324]
[1633047281949,9.33338788,141.75,141.71,2.00010419]
[1633047282350,9.33338788,141.75,141.72,1.99571372]
[1633047282749,9.33338788,141.75,141.73,1.99471362]
[1633047282949,9.33338788,141.75,141.72,1.99624415]
[1633047283350,9.33338788,141.75,141.73,1.99473325]
[1633047283554,9.33338788,141.75,141.73,26.3402093]
[1633047283953,9.33338788,141.75,141.74,31.98566025]
[1633047284152,9.33338788,141.75,141.74,47.142]
[1633047284351,9.33338788,141.75,141.74,59.06724821]
[1633047284550,9.33338788,141.75,141.74,25.11789823]
[1633047284752,9.33338788,141.75,141.74,7.97589823]
[1633047284954,9.33338788,141.75,141.71,4.00198244]
[1633047285351,9.33338788,141.75,141.72,3.9627387]
[1633047285652,9.33338788,141.75,141.73,32.0780405]
[1633047285853,9.33338788,141.75,141.74,7.93846157]
[1633047286055,9.59931873,141.79,141.74,7.93846157]
[1633047286255,9.59931873,141.79,141.78,1.95351528]
[1633047286654,9.59931873,141.79,141.78,23.832]
[1633047287559,9.59931873,141.79,141.78,25.80248086]
[1633047287757,9.59931873,141.79,141.78,1.97048086]
[1633047289058,9.59931873,141.79,141.76,22.46976686]
[1633047289459,9.59931873,141.79,141.78,1.98271027]
[1633047289659,9.59931873,141.79,141.77,8.0101441]
[1633047291062,9.59931873,141.79,141.77,12.02551403]
[1633047292462,402.46487288,141.84,141.77,12.02551403]
[1633047292664,402.46487288,141.84,141.8,2.01610254]
[1633047293663,402.46487288,141.84,141.8,28.22511997]
[1633047293862,9.59389959,141.87,141.8,28.22511997]
[1633047294063,9.59389959,141.87,141.81,1.99172071]
[1633047294465,9.59389959,141.87,141.82,1.9921871]
[1633047294864,9.59389959,141.87,141.83,1.98104055]
[1633047295063,9.18213785,141.88,141.83,31.08052697]
[1633047296066,9.18213785,141.88,141.83,29.09948642]
[1633047296666,9.18213785,141.88,141.82,1.98450295]
[1633047297666,9.18213785,141.88,141.82,30.06829965]
[1633047298266,9.18213785,141.88,141.82,32.08749014]
[1633047298466,9.18213785,141.88,141.82,2.01919049]
[1633047298666,9.18213785,141.88,141.81,2.03678737]
[1633047299067,32.46004383,141.88,141.79,2.03710349]
[1633047299266,32.46004383,141.88,141.78,2.03722336]
[1633047299466,32.46004383,141.88,141.79,22.66840089]
[1633047299667,3.20658096,141.79,141.75,4.07444671]
[1633047299866,22.40558096,141.79,141.72,85.93960143]
[1633047300166,28.17909735,141.79,141.72,73.7015]
[1633047300369,28.17909735,141.79,141.68,4.07609777]
[1633047300566,45.68348694,141.79,141.68,4.07609777]
[1633047300767,20.53380195,141.78,141.67,41.67241062]
[1633047300966,20.53380195,141.78,141.68,12.24171039]
[1633047301168,38.03819154,141.78,141.68,8.16535807]
[1633047301967,17.50438959,141.78,141.68,8.16535807]
[1633047302167,17.50438959,141.78,141.68,12.24154507]
[1633047302567,334.11036577,141.79,141.7,4.07570555]
[1633047302969,21.4686777,141.78,141.69,4.07587103]
[1633047303567,334.11036577,141.79,141.7,27.95224431]
[1633047303969,334.11036577,141.79,141.71,12.23894401]
[1633047304170,3.20658096,141.79,141.72,4.0754488]
[1633047304368,3.20658096,141.79,141.72,20.7134488]
[1633047304572,3.20658096,141.79,141.72,16.638]
[1633047304968,3.20658096,141.79,141.71,4.07587145]
[1633047305169,3.20658096,141.79,141.71,12.23983242]
[1633047305572,3.20658096,141.79,141.69,4.07635715]
[1633047305970,3.20658096,141.79,141.7,4.0762532]
[1633047306171,3.20658096,141.79,141.7,12.24088166]
[1633047306371,3.20658096,141.79,141.71,25.42057972]
[1633047309973,3.20658096,141.79,141.72,8.16412885]
[1633047310173,3.20658096,141.79,141.72,12.24074427]
[1633047310373,3.20658096,141.79,141.72,8.16412885]
[1633047310574,3.20658096,141.79,141.7,4.07717037]
[1633047311381,3.20658096,141.79,141.71,25.67159236]
[1633047311576,3.20658096,141.79,141.72,8.1645886]
[1633047312678,3.20658096,141.79,141.72,12.2416751]
[1633047312877,3.20658096,141.79,141.73,4.07688615]
[1633047313078,3.20658096,141.79,141.74,27.29331773]
[1633047313279,3.20658096,141.79,141.73,4.07688615]
[1633047313482,3.20658096,141.79,141.72,4.07694701]
[1633047313680,8.98009735,141.79,141.7,4.07791112]
[1633047314080,8.98009735,141.79,141.69,4.07791591]
[1633047314280,9.33338788,141.75,141.69,4.07791591]
[1633047314481,30.78390085,141.75,141.69,4.07791591]
[1633047314679,9.33338788,141.75,141.69,4.07791591]
[1633047315681,38.35058102,141.75,141.69,4.07791591]
[1633047315883,9.33338788,141.75,141.69,4.07791591]
[1633047316684,9.33338788,141.75,141.67,4.0779464]
[1633047317489,23.42481932,141.74,141.67,4.0779464]
[1633047318890,23.42481932,141.74,141.66,4.07791111]
[1633047319294,23.42481932,141.74,141.65,4.07770225]
[1633047320092,23.42481932,141.74,141.66,4.07747038]
[1633047321293,23.42481932,141.74,141.65,4.07751024]
[1633047321491,23.42481932,141.74,141.64,4.07759531]
[1633047323294,23.42481932,141.74,141.65,4.0772363]
[1633047323692,23.42481932,141.74,141.66,22.17811592]
[1633047323896,23.42481932,141.74,141.65,4.0772363]
[1633047324293,23.42481932,141.74,141.65,12.24405909]
[1633047324492,23.42481932,141.74,141.65,4.0772363]
[1633047324694,23.42481932,141.74,141.66,4.0768991]
[1633047326196,29.19833571,141.74,141.64,4.078233]
[1633047326400,72.5852,141.73,141.64,4.078233]
[1633047326596,72.5852,141.73,141.63,4.07957864]
[1633047326796,72.5852,141.73,141.65,8.16844145]
[1633047326997,72.5852,141.73,141.64,26.84440987]
[1633047327196,29.19833571,141.74,141.65,8.16819676]
[1633047327396,23.42481932,141.74,141.65,12.24705624]
[1633047327597,23.42481932,141.74,141.66,4.07990727]
[1633047327796,23.42481932,141.74,141.65,12.24820685]
[1633047327996,23.42481932,141.74,141.66,4.07980678]
[1633047328396,23.42481932,141.74,141.65,12.24821814]
[1633047328596,23.42481932,141.74,141.65,4.08002138]
[1633047328999,103.16551932,141.74,141.64,4.08001638]
[1633047329395,103.16551932,141.74,141.66,4.07963768]
[1633047329595,79.7407,141.74,141.67,4.08028495]
[1633047329997,9.33338788,141.75,141.66,12.24804922]
[1633047330198,5.77351639,141.73,141.66,12.24804922]
[1633047330396,5.77351639,141.73,141.64,4.08093964]
[1633047330799,5.77351639,141.73,141.63,4.08114073]
[1633047330999,23.77440741,141.72,141.63,4.08114073]
[1633047331198,23.77440741,141.72,141.62,4.08095305]
[1633047331601,23.77440741,141.72,141.62,12.25093903]
[1633047332197,23.77440741,141.72,141.64,4.08032178]
[1633047332399,9.33668403,141.7,141.64,4.08032178]
[1633047332599,14.2158959,141.69,141.64,4.08032178]
[1633047332797,14.2158959,141.69,141.63,4.08077631]
[1633047332999,14.2158959,141.69,141.62,4.08087819]
[1633047333597,14.2158959,141.69,141.61,34.24677018]
[1633047333798,14.2158959,141.69,141.62,12.25019904]
[1633047334002,14.2158959,141.69,141.61,4.080463]
[1633047334201,9.33668403,141.7,141.61,4.080463]
[1633047334401,9.33668403,141.7,141.63,4.08000338]
[1633047334600,9.33668403,141.7,141.65,4.07944941]
[1633047335205,9.33668403,141.7,141.66,29.52586645]
[1633047336201,9.33668403,141.7,141.64,4.07962626]
[1633047336803,9.60270879,141.74,141.66,4.079236]
[1633047337005,0.0212976,141.76,141.69,4.07847128]
[1633047337202,0.0212976,141.76,141.69,15.271]
[1633047337405,3.20658096,141.79,141.66,9.85299784]
[1633047337628,23.12950123,141.76,141.67,8.16759523]
[1633047337804,23.12950123,141.76,141.67,26.4785341]
[1633047339408,23.12950123,141.76,141.66,4.07949912]
[1633047340506,9.60203059,141.75,141.66,29.88521682]
[1633047340707,9.60203059,141.75,141.67,8.16790606]
[1633047341909,9.33602462,141.71,141.67,8.16790606]
[1633047342108,9.33602462,141.71,141.67,12.24846293]
[1633047342307,9.60203059,141.75,141.7,4.07985423]
[1633047342508,3.20658096,141.79,141.7,15.04]
[1633047342906,3.20658096,141.79,141.71,12.24528931]
[1633047343107,3.20658096,141.79,141.72,27.43007061]
[1633047343308,3.20658096,141.79,141.73,8.16456792]
[1633047343508,3.20658096,141.79,141.73,30.26756792]
[1633047343710,3.20658096,141.79,141.73,22.103]
[1633047343908,3.20658096,141.79,141.74,8.16441042]
[1633047344108,3.20658096,141.79,141.72,4.07908984]
[1633047344308,3.20658096,141.79,141.7,4.07956876]
[1633047345107,3.20658096,141.79,141.7,27.35253448]
[1633047345307,3.20658096,141.79,141.71,8.1662048]
[1633047346110,3.20658096,141.79,141.71,12.24591245]
[1633047346408,3.20658096,141.79,141.72,4.07942893]
[1633047346628,3.20658096,141.79,141.74,4.0787306]
[1633047346810,3.20658096,141.79,141.75,4.07835061]
[1633047347012,3.20658096,141.79,141.74,12.2414343]
[1633047347211,3.20658096,141.79,141.74,4.07801267]
[1633047347410,3.20658096,141.79,141.75,22.69329244]
[1633047348411,2.6292895,141.79,141.75,22.69329244]
[1633047358424,2.6292895,141.79,141.73,4.7822718]
[1633047358643,2.6292895,141.79,141.73,0.7061]
[1633047361027,2.6292895,141.79,141.74,21.51609548]
[1633047362029,2.6292895,141.79,141.73,0.7061]
[1633047364656,9.3314113,141.78,141.73,0.7061]
[1633047367833,27.09662286,141.77,141.73,0.7061]
[1633047369235,9.3314113,141.78,141.73,0.7061]
[1633047369732,9.3314113,141.78,141.74,8.16441656]
[1633047371336,9.3314113,141.78,141.74,12.24369899]
[1633047371532,9.3314113,141.78,141.74,8.16441656]
[1633047372132,9.3314113,141.78,141.74,12.24442074]
[1633047373933,9.3314113,141.78,141.74,8.16441656]
[1633047374138,9.3314113,141.78,141.75,4.07965248]
[1633047374337,2.6292895,141.79,141.75,8.16228795]
[1633047374534,2.6292895,141.79,141.78,4.07849969]
[1633047374735,2.6292895,141.79,141.78,55.74749969]
[1633047374935,2.6292895,141.79,141.78,85.48121494]
[1633047375135,2.6292895,141.79,141.78,93.64301584]
[1633047375337,2.6292895,141.79,141.78,59.64301584]
[1633047375737,2.6292895,141.79,141.78,55.56451615]
[1633047376138,2.6292895,141.79,141.78,47.40271525]
[1633047377938,2.6292895,141.79,141.78,17.669]
[1633047378347,2.6292895,141.79,141.74,4.05129948]
[1633047378542,2.6292895,141.79,141.74,12.21582329]
[1633047378941,2.6292895,141.79,141.74,38.50328531]
[1633047379142,2.6292895,141.79,141.74,30.3387615]
[1633047379761,2.6292895,141.79,141.73,4.74909374]
[1633047379963,2.6292895,141.79,141.73,0.7061]
[1633047383064,2.6292895,141.79,141.74,29.24401692]
[1633047383265,2.6292895,141.79,141.74,52.17201692]
[1633047383566,2.6292895,141.79,141.75,8.16389554]
[1633047383767,2.6292895,141.79,141.75,12.18404614]
[1633047384167,9.32811887,141.83,141.79,2.6292895]
[1633047384367,9.32811887,141.83,141.8,28.70484263]
[1633047387872,9.59389959,141.87,141.8,28.70484263]
[1633047388073,0.0212976,141.9,141.8,28.70484263]
[1633047388270,0.0212976,141.9,141.81,8.16056118]
[1633047388472,0.0212976,141.94,141.8,28.70484263]
[1633047388675,32.97445004,141.94,141.8,28.70484263]
[1633047388873,32.97445004,141.93,141.8,28.70484263]
[1633047389072,0.0212976,141.92,141.8,28.70484263]
[1633047389272,27.20093365,141.92,141.8,28.70484263]
[1633047389471,25.18813454,141.91,141.8,28.70484263]
[1633047389672,0.0212976,141.9,141.8,28.70484263]
[1633047391671,0.0212976,141.9,141.78,3.96273911]
[1633047391872,0.0212976,141.9,141.77,3.96844272]
[1633047392073,0.0212976,141.9,141.76,3.98724187]
[1633047392074,49.18071564,141.9,141.76,3.98724187]
[1633047392271,49.18071564,141.9,141.75,4.00021097]
[1633047392473,49.18071564,141.9,141.74,12.17824256]
[1633047392674,49.18071564,141.9,141.75,28.72081997]
[1633047392874,9.59322263,141.88,141.75,28.72081997]
[1633047393073,9.32746067,141.84,141.75,28.72081997]
[1633047393272,24.83027252,141.83,141.75,28.72081997]
[1633047393472,24.83027252,141.83,141.73,4.73123812]
[1633047393678,24.83027252,141.83,141.73,0.7061]
[1633047395375,0.0212976,141.82,141.73,0.7061]
[1633047398780,9.33207007,141.77,141.73,0.7061]
[1633047398981,25.34307007,141.77,141.73,0.7061]
[1633047399582,23.80249597,141.76,141.73,0.7061]
[1633047404881,8.62860606,141.73,141.64,4.07897923]
[1633047405082,23.80249597,141.76,141.64,4.07897923]
[1633047405484,23.80249597,141.76,141.63,4.07870373]
[1633047405684,23.80249597,141.76,141.62,12.24751208]
[1633047405885,23.80249597,141.76,141.62,40.41888438]
[1633047406086,23.80249597,141.76,141.63,8.1692792]
[1633047406486,29.57601236,141.76,141.63,8.1692792]
[1633047406687,58.05564841,141.76,141.62,12.24810878]
[1633047406888,346.87150843,141.76,141.62,4.07872474]
[1633047407290,346.87150843,141.76,141.63,21.37955053]
[1633047407887,341.09799204,141.76,141.64,8.16884673]
[1633047408087,341.09799204,141.76,141.62,4.07801089]
[1633047408286,369.58950843,141.76,141.62,4.07801089]
[1633047408487,363.81599204,141.76,141.62,4.07801089]
[1633047408689,335.33635599,141.76,141.63,9.85107408]
[1633047408887,335.33635599,141.76,141.65,4.07703606]
[1633047409087,312.61835599,141.76,141.65,4.07703606]
[1633047409287,312.61835599,141.76,141.66,5.77351639]
[1633047409488,312.61835599,141.76,141.67,36.19690144]
[1633047409689,288.81586002,141.76,141.68,8.16637947]
[1633047409887,9.33207007,141.77,141.68,13.93989586]
[1633047410087,9.33207007,141.77,141.68,5.77351639]
[1633047410287,9.33272893,141.76,141.68,5.77351639]
[1633047410689,9.59796337,141.81,141.68,82.80001639]
[1633047410888,9.59796337,141.81,141.7,4.07559597]
[1633047411089,9.59796337,141.81,141.71,32.92078426]
[1633047411288,9.59796337,141.81,141.72,8.16356869]
[1633047411688,24.64644931,141.84,141.72,13.93708508]
[1633047411888,24.64644931,141.84,141.73,5.77351639]
[1633047412089,24.64644931,141.84,141.74,27.52479921]
[1633047418496,33.9738627,141.84,141.74,27.52479921]
[1633047421797,33.9738627,141.84,141.74,29.55260769]
[1633047424003,33.9738627,141.84,141.74,27.52479921]
[1633047424602,33.9738627,141.84,141.74,29.56328441]
[1633047425604,33.9738627,141.84,141.74,27.52479921]
[1633047425803,33.9738627,141.84,141.74,29.56323263]
[1633047427309,33.9738627,141.84,141.74,27.52479921]
[1633047427704,33.9738627,141.84,141.74,29.56321239]
[1633047429205,33.9738627,141.84,141.74,27.52479921]
[1633047430409,33.9738627,141.84,141.74,29.56334948]
[1633047430607,33.9738627,141.84,141.74,27.52479921]
[1633047431009,33.9738627,141.84,141.74,29.56336434]
[1633047431207,33.9738627,141.84,141.74,27.52479921]
[1633047432008,33.9738627,141.84,141.74,29.56343091]
[1633047435008,39.74737909,141.84,141.74,29.56343091]
[1633047436511,39.74737909,141.84,141.75,2.03629793]
[1633047437211,9.32943557,141.81,141.74,29.55006634]
[1633047437413,27.76635164,141.8,141.74,29.55006634]
[1633047437608,27.76635164,141.8,141.75,2.02581226]
[1633047438709,27.76635164,141.8,141.76,2.02757569]
[1633047439609,27.76635164,141.8,141.77,2.0194053]
[1633047440011,27.76635164,141.8,141.76,2.02288589]
[1633047443014,9.32943557,141.81,141.76,2.02288589]
[1633047443814,9.32943557,141.81,141.77,2.01964192]
[1633047444014,25.66332757,141.8,141.76,2.02537998]
[1633047444618,25.66332757,141.8,141.77,2.03016883]
[1633047445216,25.66332757,141.8,141.76,2.03162166]
[1633047445416,25.66332757,141.8,141.77,2.02892341]
[1633047445617,25.66332757,141.8,141.76,2.02913763]
[1633047446920,9.32943557,141.81,141.77,2.00466014]
[1633047449321,28.59825578,141.8,141.77,2.00466014]
[1633047449722,28.59825578,141.8,141.75,2.02920129]
[1633047449921,9.33207007,141.77,141.75,2.02920129]
[1633047450922,31.58783996,141.77,141.75,2.02920129]
[1633047451122,31.58783996,141.77,141.74,2.00045356]